bitfinex/quotes_BTCUSD_20250604
["timestamp","ask_amount","ask_price","bid_price","bid_amount"]
[1749003554308,0.07598897,105750.0,105740.0,0.3848543]
[1749003555402,0.07598897,105750.0,105740.0,0.9906943]
[1749003555608,0.07798897,105750.0,105740.0,0.9906943]
[1749003556724,0.00204801,105750.0,105740.0,0.9906943]
[1749003557765,0.01724801,105750.0,105740.0,0.9906943]
[1749003558448,0.00204801,105750.0,105740.0,1.0067943]
[1749003559835,0.00204801,105750.0,105740.0,1.0220943]
[1749003560535,0.00204801,105750.0,105740.0,1.0067943]
[1749003561633,0.00204801,105750.0,105740.0,0.7016543]
[1749003561851,0.72658469,105750.0,105740.0,0.0958543]
[1749003562077,1.08032137,105750.0,105740.0,0.51708]
[1749003562299,0.72658469,105750.0,105740.0,0.89484]
[1749003562519,0.7443028,105750.0,105740.0,0.89484]
[1749003562729,0.72658469,105750.0,105740.0,0.89484]
[1749003564065,0.74430288,105750.0,105740.0,0.89484]
[1749003564274,0.72658469,105750.0,105740.0,0.89484]
[1749003565151,0.72658469,105750.0,105720.0,0.27216]
[1749003565152,0.0312,105730.0,105720.0,0.27216]
[1749003565399,0.38493668,105730.0,105720.0,0.89492]
[1749003565884,0.43104213,105730.0,105720.0,0.60564]
[1749003566102,0.43104214,105730.0,105720.0,0.895]
[1749003566318,0.43104231,105730.0,105720.0,0.895]
[1749003566523,0.41332068,105730.0,105720.0,0.895]
[1749003566729,0.41432068,105730.0,105720.0,0.895]
[1749003567770,0.41732068,105730.0,105720.0,0.895]
[1749003568195,0.43504251,105730.0,105720.0,0.895]
[1749003568407,0.41732068,105730.0,105720.0,0.895]
[1749003568614,0.43504251,105730.0,105720.0,0.895]
[1749003568828,0.41732068,105730.0,105720.0,0.895]
[1749003569265,0.06590555,105730.0,105720.0,0.9908543]
[1749003569509,0.74192068,105730.0,105720.0,0.9908543]
[1749003569722,0.75802068,105730.0,105720.0,0.9908543]
[1749003570157,0.3759,105730.0,105720.0,0.9908543]
[1749003570607,0.72963668,105730.0,105720.0,0.9908543]
[1749003572159,0.3759,105730.0,105720.0,0.9908543]
[1749003572607,0.39361931,105730.0,105720.0,0.9908543]
[1749003573041,0.3759,105730.0,105720.0,0.9908543]
[1749003574820,0.39361953,105730.0,105720.0,0.9908543]
[1749003575081,0.3759,105730.0,105720.0,0.9908543]
[1749003575550,0.39361953,105730.0,105720.0,0.9908543]
[1749003575785,0.39361952,105730.0,105720.0,0.9908543]
[1749003576014,0.3759,105730.0,105720.0,0.9908543]
[1749003576730,0.3936195,105730.0,105720.0,0.9908543]
[1749003576963,0.39361951,105730.0,105720.0,0.9908543]
[1749003577195,0.3759,105730.0,105720.0,0.9908543]
[1749003578671,0.39361956,105730.0,105720.0,0.9908543]
[1749003578903,0.3759,105730.0,105720.0,0.9908543]
[1749003579534,0.39361956,105730.0,105720.0,0.9908543]
[1749003579754,0.3759,105730.0,105720.0,0.9908543]
[1749003579977,0.39361956,105730.0,105720.0,0.9908543]
[1749003580191,0.72963668,105730.0,105720.0,0.9908543]
[1749003580610,0.3759,105730.0,105720.0,0.9908543]
[1749003581469,0.39361954,105730.0,105720.0,0.9908543]
[1749003581902,0.41133894,105730.0,105720.0,0.9908543]
[1749003582138,0.36171954,105730.0,105720.0,0.9908543]
[1749003582543,0.39483866,105730.0,105720.0,0.9908543]
[1749003582768,0.37711954,105730.0,105720.0,0.9908543]
[1749003582984,0.39483863,105730.0,105720.0,0.9908543]
[1749003583203,0.37711954,105730.0,105720.0,0.9908543]
[1749003583703,0.39351954,105730.0,105720.0,0.9908543]
[1749003583919,0.41123879,105730.0,105720.0,0.9908543]
[1749003584124,0.39351954,105730.0,105720.0,0.9908543]
[1749003584339,0.39351954,105730.0,105720.0,0.9903343]
[1749003585388,0.41123886,105730.0,105720.0,0.9903343]
[1749003585591,0.39351954,105730.0,105720.0,0.9903343]
[1749003587909,0.3948389,105730.0,105720.0,0.9903343]
[1749003588114,0.39483886,105730.0,105720.0,0.9903343]
[1749003588329,0.37711954,105730.0,105720.0,0.9903343]
[1749003589399,0.39241954,105730.0,105720.0,0.9903343]
[1749003590018,0.74615622,105730.0,105720.0,0.9903343]
[1749003590857,0.76387553,105730.0,105720.0,0.9903343]
[1749003591070,0.74615622,105730.0,105720.0,0.9903343]
[1749003591694,0.76387566,105730.0,105720.0,0.9903343]
[1749003591902,0.74615622,105730.0,105720.0,0.9903343]
[1749003593205,0.74615622,105730.0,105720.0,0.7015343]
[1749003593423,0.73085622,105730.0,105720.0,0.9903343]
[1749003593871,0.74595622,105730.0,105720.0,0.9903343]
[1749003594098,0.76367565,105730.0,105720.0,0.9903343]
[1749003594316,0.7636756,105730.0,105720.0,0.9903343]
[1749003594530,0.74595622,105730.0,105720.0,0.9903343]
[1749003595852,0.74595622,105730.0,105720.0,0.6129343]
[1749003596071,0.74595622,105730.0,105720.0,0.51708]
[1749003596289,0.74595622,105730.0,105720.0,0.89436]
[1749003596290,1.11741396,105730.0,105720.0,0.89436]
[1749003596503,0.77434122,105730.0,105720.0,0.89436]
[1749003597812,0.79206361,105730.0,105720.0,0.89436]
[1749003598037,0.77434122,105730.0,105720.0,0.89436]
[1749003598248,0.79206363,105730.0,105720.0,0.89436]
[1749003598459,0.77434122,105730.0,105720.0,0.89436]
[1749003598889,0.80229135,105730.0,105720.0,0.89436]
[1749003599125,0.82001371,105730.0,105720.0,0.51708]
[1749003599334,0.80229135,105730.0,105720.0,0.89436]
[1749003600423,0.77434122,105730.0,105720.0,0.89436]
[1749003600655,0.37711954,105730.0,105720.0,0.9902143]
[1749003601090,0.36171954,105730.0,105720.0,0.9902143]
[1749003603178,0.37721954,105730.0,105720.0,0.9902143]
[1749003605117,0.73095622,105730.0,105720.0,0.9902143]
[1749003617465,0.02171954,105730.0,105720.0,0.9902143]
[1749003617709,0.02171954,105730.0,105720.0,1.37565098]
[1749003618434,0.01871954,105730.0,105720.0,1.37565098]
[1749003618678,0.01771954,105730.0,105720.0,0.6446343]
[1749003618933,0.40535622,105730.0,105720.0,0.6129343]
[1749003619173,0.78589184,105730.0,105720.0,0.6129343]
[1749003619411,0.74535622,105730.0,105720.0,0.89432]
[1749003619646,0.76307776,105730.0,105720.0,0.89432]
[1749003619872,0.77374122,105730.0,105720.0,0.89432]
[1749003620603,0.77174122,105730.0,105720.0,0.89432]
[1749003620835,0.77274122,105730.0,105720.0,0.89432]
[1749003621441,0.79046249,105730.0,105720.0,0.89432]
[1749003621679,0.77274122,105730.0,105720.0,0.89432]
[1749003621927,1.23123153,105730.0,105720.0,0.60556]
[1749003622163,1.34667069,105730.0,105720.0,0.89432]
[1749003622409,1.27618078,105730.0,105720.0,0.51708]
[1749003622644,1.27501233,105730.0,105720.0,0.89432]
[1749003622889,1.29273621,105730.0,105720.0,0.89432]
[1749003623123,1.32417265,105730.0,105720.0,0.89432]
[1749003623356,1.33481863,105730.0,105720.0,0.89432]
[1749003623589,1.31609475,105730.0,105720.0,0.89432]
[1749003623827,1.33117224,105730.0,105720.0,0.89432]
[1749003624074,1.35890581,105730.0,105720.0,0.89432]
[1749003624301,1.35890579,105730.0,105720.0,0.89432]
[1749003624505,1.34118193,105730.0,105720.0,0.89432]
[1749003624930,1.36555266,105730.0,105720.0,0.89432]
[1749003625165,1.34118193,105730.0,105720.0,0.89432]
[1749003625569,1.34782841,105730.0,105720.0,0.89432]
[1749003625781,1.35890585,105730.0,105720.0,0.89432]
[1749003625990,1.34118193,105730.0,105720.0,0.89432]
[1749003626198,1.34782846,105730.0,105720.0,0.89432]
[1749003626407,1.34118193,105730.0,105720.0,0.89432]
[1749003627075,1.35890585,105730.0,105720.0,0.89432]
[1749003627293,1.34118193,105730.0,105720.0,0.89432]
[1749003627501,1.3478284,105730.0,105720.0,0.89432]
[1749003627710,1.34118193,105730.0,105720.0,0.89432]
[1749003627916,1.34782851,105730.0,105720.0,0.89432]
[1749003628100,1.34118193,105730.0,105720.0,0.89432]
[1749003628338,1.35890615,105730.0,105720.0,0.89432]
[1749003628551,1.34118193,105730.0,105720.0,0.89432]
[1749003628771,1.40025724,105730.0,105720.0,0.89432]
[1749003628989,1.4336138,105730.0,105720.0,0.89432]
[1749003629207,0.01454085,105720.0,105690.0,0.6]
[1749003629420,0.3552,105710.0,105700.0,0.08848]
[1749003629639,0.70893668,105710.0,105700.0,0.37728]
[1749003630091,0.73872768,105710.0,105700.0,0.37728]
[1749003630312,0.384991,105710.0,105700.0,0.37728]
[1749003630524,0.69373668,105710.0,105700.0,0.39388]
[1749003630751,0.34,105710.0,105700.0,0.39436033]
[1749003630976,0.41488991,105730.0,105710.0,0.0166]
[1749003631193,0.38715622,105730.0,105720.0,0.37732]
[1749003631422,0.75554122,105730.0,105720.0,0.37732]
[1749003631634,0.73984122,105730.0,105720.0,0.37732]
[1749003632069,0.38610454,105730.0,105720.0,0.4897743]
[1749003632295,0.3754396,105730.0,105720.0,0.4897743]
[1749003632533,0.35771954,105730.0,105720.0,0.4897743]
[1749003632760,0.37543954,105730.0,105720.0,0.4897743]
[1749003632951,0.73215622,105730.0,105720.0,0.37732]
[1749003633203,0.73015622,105730.0,105720.0,0.08852]
[1749003633419,0.73249928,105730.0,105720.0,0.37732]
[1749003633640,0.76622048,105730.0,105720.0,0.08848]
[1749003633901,0.74849928,105730.0,105720.0,0.37728]
[1749003634375,0.73279928,105730.0,105720.0,0.37728]
[1749003634845,0.74919928,105730.0,105720.0,0.37728]
[1749003635333,0.74919928,105730.0,105720.0,0.89452]
[1749003635773,0.76692074,105730.0,105720.0,0.89452]
[1749003636010,0.74919928,105730.0,105720.0,0.89452]
[1749003636435,0.7669207,105730.0,105720.0,0.89452]
[1749003636667,0.74919928,105730.0,105720.0,0.89452]
[1749003637349,0.73279928,105730.0,105720.0,0.89452]
[1749003638651,0.74899928,105730.0,105720.0,0.89452]
[1749003639280,0.76672035,105730.0,105720.0,0.89452]
[1749003639504,0.73279928,105730.0,105720.0,0.89452]
[1749003639721,0.77890533,105730.0,105720.0,0.89452]
[1749003639942,0.76118428,105730.0,105720.0,0.89452]
[1749003641304,0.77890538,105730.0,105720.0,0.89452]
[1749003641961,0.76118428,105730.0,105720.0,0.89452]
[1749003643273,0.77890535,105730.0,105720.0,0.89452]
[1749003643492,0.76118428,105730.0,105720.0,0.89452]
[1749003644840,0.77648428,105730.0,105720.0,0.89452]
[1749003645056,0.79420519,105730.0,105720.0,0.89452]
[1749003645513,0.76118428,105730.0,105720.0,0.89452]
[1749003647920,0.77890519,105730.0,105720.0,0.89452]
[1749003648377,0.76118428,105730.0,105720.0,0.89452]
[1749003649121,0.77890531,105730.0,105720.0,0.89452]
[1749003649357,0.76118428,105730.0,105720.0,0.89452]
[1749003650728,0.77890534,105730.0,105720.0,0.89452]
[1749003651240,0.76118428,105730.0,105720.0,0.89452]
[1749003653732,0.77890531,105730.0,105720.0,0.89452]
[1749003653944,0.76118428,105730.0,105720.0,0.89452]
[1749003655307,0.77889908,105730.0,105720.0,0.89452]
[1749003655540,0.76117804,105730.0,105720.0,0.89452]
[1749003656967,0.02271954,105730.0,105720.0,1.0205743]
[1749003660300,0.37679304,105730.0,105720.0,1.0054343]
[1749003661229,0.02271954,105730.0,105720.0,1.0054343]
[1749003661452,0.02271954,105730.0,105720.0,1.0211343]
[1749003663831,0.02271954,105730.0,105720.0,1.0054343]
[1749003664896,0.37679304,105730.0,105720.0,0.6281943]
[1749003665100,0.39179304,105730.0,105720.0,0.9903343]
[1749003665329,0.73179304,105730.0,105720.0,0.51724]
[1749003665549,0.74839304,105730.0,105720.0,0.60572]
[1749003665763,0.74839304,105730.0,105720.0,0.89448]
[1749003666056,0.77677704,105730.0,105720.0,0.89448]
[1749003670800,0.42270354,105730.0,105720.0,0.89448]
[1749003671294,0.77677704,105730.0,105720.0,0.89448]
[1749003672843,0.79449829,105730.0,105720.0,0.89448]
[1749003673270,0.79449827,105730.0,105720.0,0.89448]
[1749003673481,0.77677704,105730.0,105720.0,0.89448]
[1749003673691,0.79449828,105730.0,105720.0,0.89448]
[1749003673902,0.77677704,105730.0,105720.0,0.89448]
[1749003675847,0.77677704,105730.0,105720.0,0.60572]
[1749003676120,0.77677704,105730.0,105720.0,0.89448]
[1749003676537,0.7944983,105730.0,105720.0,0.89448]
[1749003676746,0.77677704,105730.0,105720.0,0.89448]
[1749003676972,0.77677704,105730.0,105720.0,0.60572]
[1749003677217,0.77677704,105730.0,105720.0,0.89448]
[1749003677455,0.77677704,105730.0,105720.0,0.51724]
[1749003677725,0.79449857,105730.0,105720.0,0.89448]
[1749003677941,0.79131789,105730.0,105720.0,0.51724]
[1749003678159,0.43724439,105730.0,105720.0,0.89448]
[1749003678418,0.79131789,105730.0,105720.0,0.89448]
[1749003678897,0.79131789,105730.0,105720.0,0.60572]
[1749003679109,0.79131789,105730.0,105720.0,0.89448]
[1749003680291,0.80903967,105730.0,105720.0,0.89448]
[1749003680504,0.81993438,105730.0,105720.0,0.89448]
[1749003681573,0.83765647,105730.0,105720.0,0.89448]
[1749003681990,0.83765648,105730.0,105720.0,0.89448]
[1749003682202,0.81993438,105730.0,105720.0,0.89448]
[1749003682424,0.80539353,105730.0,105720.0,0.89448]
[1749003683302,0.82311498,105730.0,105720.0,0.89448]
[1749003683509,0.80539353,105730.0,105720.0,0.89448]
[1749003684161,0.82311457,105730.0,105720.0,0.89448]
[1749003684364,0.80539353,105730.0,105720.0,0.89448]
[1749003686697,0.79449809,105730.0,105720.0,0.89448]
[1749003686714,0.76017704,105730.0,105720.0,0.89448]
[1749003687686,0.77789819,105730.0,105720.0,0.89448]
[1749003687886,0.77789802,105730.0,105720.0,0.89448]
[1749003688098,0.76017704,105730.0,105720.0,0.89448]
[1749003689114,0.79319813,105730.0,105720.0,0.51724]
[1749003689321,0.77547704,105730.0,105720.0,0.89448]
[1749003689919,0.79319814,105730.0,105720.0,0.89448]
[1749003690121,0.79319826,105730.0,105720.0,0.89448]
[1749003690318,0.77547704,105730.0,105720.0,0.89448]
[1749003691360,0.79319821,105730.0,105720.0,0.89448]
[1749003691557,0.77547704,105730.0,105720.0,0.89448]
[1749003692002,0.79319832,105730.0,105720.0,0.89448]
[1749003692216,0.77547704,105730.0,105720.0,0.89448]
[1749003692377,0.76017704,105730.0,105720.0,0.89448]
[1749003692581,0.74951432,105730.0,105720.0,0.89448]
[1749003692795,0.73179304,105730.0,105720.0,0.89448]
[1749003693003,0.74951432,105730.0,105720.0,0.89448]
[1749003693266,0.7495143,105730.0,105720.0,0.89448]
[1749003693526,0.73179304,105730.0,105720.0,0.89448]
[1749003693770,0.7495143,105730.0,105720.0,0.89448]
[1749003694246,0.73179304,105730.0,105720.0,0.89448]
[1749003694678,0.74951432,105730.0,105720.0,0.89448]
[1749003695114,0.77757818,105730.0,105720.0,0.89448]
[1749003695353,0.7598569,105730.0,105720.0,0.89448]
[1749003695584,0.77757818,105730.0,105720.0,0.89448]
[1749003695794,0.36271954,105730.0,105720.0,0.91098]
[1749003696025,0.71679304,105730.0,105720.0,0.91098]
[1749003696709,0.71679304,105730.0,105720.0,0.89448]
[1749003696933,0.73319304,105730.0,105720.0,0.89448]
[1749003699308,0.75091375,105730.0,105720.0,0.89448]
[1749003699939,0.76863453,105730.0,105720.0,0.89448]
[1749003700153,0.76863451,105730.0,105720.0,0.89448]
[1749003700356,0.75091375,105730.0,105720.0,0.89448]
[1749003700992,0.76863473,105730.0,105720.0,0.89448]
[1749003701205,0.76671375,105730.0,105720.0,0.89448]
[1749003703390,0.79537826,105730.0,105720.0,0.89448]
[1749003704224,0.81309948,105730.0,105720.0,0.60572]
[1749003704449,0.79537826,105730.0,105720.0,0.89444]
[1749003704662,0.81309948,105730.0,105720.0,0.89444]
[1749003704874,0.79537826,105730.0,105720.0,0.89444]
[1749003705501,0.79537826,105730.0,105720.0,0.51724]
[1749003705714,0.79537826,105730.0,105720.0,0.89444]
[1749003705932,0.81309953,105730.0,105720.0,0.89444]
[1749003706148,0.79537826,105730.0,105720.0,0.89444]
[1749003707023,0.81309953,105730.0,105720.0,0.51724]
[1749003707278,0.79537826,105730.0,105720.0,0.8944]
[1749003707765,0.79537826,105730.0,105720.0,0.51724]
[1749003708015,0.79537826,105730.0,105720.0,0.8944]
[1749003708747,0.79538,105730.0,105720.0,0.8944]
[1749003708976,0.77765872,105730.0,105720.0,0.8944]
[1749003709427,0.79537999,105730.0,105720.0,0.51724]
[1749003709694,0.79537999,105730.0,105720.0,0.8944]
[1749003709936,0.76185872,105730.0,105720.0,0.8944]
[1749003710636,0.8428615,105730.0,105720.0,0.8944]
[1749003712026,0.86058277,105730.0,105720.0,0.8944]
[1749003712256,0.8273615,105730.0,105720.0,0.8944]
[1749003712955,0.79869699,105730.0,105720.0,0.8944]
[1749003713200,0.81641826,105730.0,105720.0,0.8944]
[1749003713437,0.79869699,105730.0,105720.0,0.8944]
[1749003713684,0.79870903,105730.0,105720.0,0.8944]
[1749003714618,0.71679421,105730.0,105720.0,0.9098]
[1749003715332,0.71679421,105730.0,105720.0,1.0222543]
[1749003715333,0.36272071,105730.0,105720.0,1.0222543]
[1749003715559,0.02272071,105730.0,105720.0,1.0222543]
[1749003715806,0.02272071,105730.0,105720.0,1.3763278]
[1749003716265,0.02272071,105730.0,105720.0,1.0222543]
[1749003718146,0.39249421,105730.0,105720.0,0.9902143]
[1749003718385,0.7661135,105730.0,105720.0,0.60568]
[1749003718613,0.7661135,105730.0,105720.0,0.89436]
[1749003718614,0.74839421,105730.0,105720.0,0.89436]
[1749003718840,0.74839421,105730.0,105720.0,0.51724]
[1749003718841,0.77705812,105730.0,105720.0,0.51724]
[1749003719076,0.77705812,105730.0,105720.0,0.89436]
[1749003719532,0.8425087,105730.0,105720.0,0.89436]
[1749003719753,0.86023111,105730.0,105720.0,0.89436]
[1749003719990,0.86023115,105730.0,105720.0,0.51724]
[1749003720230,0.8425087,105730.0,105720.0,0.89436]
[1749003720909,0.77705812,105730.0,105720.0,0.89436]
[1749003721137,0.84250524,105730.0,105720.0,0.51724]
[1749003721382,1.35363081,105730.0,105720.0,0.51724]
[1749003721620,1.35363081,105730.0,105720.0,0.60568]
[1749003721621,1.3592206,105730.0,105720.0,0.60568]
[1749003721870,1.33485059,105730.0,105720.0,0.37712]
[1749003722341,1.34149757,105730.0,105720.0,0.37712]
[1749003722603,0.0302,105710.0,105700.0,0.01525666]
[1749003722829,0.43544096,105710.0,105700.0,0.37760033]
[1749003723077,0.44971341,105710.0,105700.0,0.37760033]
[1749003723335,0.61010856,105710.0,105700.0,0.37760033]
[1749003723596,0.63850356,105710.0,105700.0,0.37760033]
[1749003723835,0.63950356,105710.0,105700.0,0.37760033]
[1749003724390,0.74974111,105710.0,105700.0,0.37760033]
[1749003724666,0.66657487,105710.0,105700.0,0.37760033]
[1749003725375,0.66657487,105710.0,105700.0,0.89484033]
[1749003725611,0.39192087,105710.0,105700.0,0.89484033]
[1749003725852,0.3701735,105710.0,105700.0,0.89484033]
[1749003726097,0.3701735,105710.0,105700.0,0.90962135]
[1749003726337,0.3701735,105710.0,105700.0,0.89484033]
[1749003726568,0.3550735,105710.0,105700.0,0.91144033]
[1749003727058,0.001,105710.0,105700.0,1.00729463]
[1749003727298,0.001,105710.0,105700.0,1.02329463]
[1749003730129,0.3550735,105710.0,105700.0,1.02329463]
[1749003730359,0.001,105710.0,105700.0,1.02329463]
[1749003732451,0.3550735,105710.0,105700.0,1.02329463]
[1749003733179,0.001,105710.0,105700.0,1.02329463]
[1749003733411,0.3550735,105710.0,105700.0,0.63017463]
[1749003733644,0.3550735,105710.0,105700.0,1.00737463]
[1749003734808,0.3702735,105710.0,105700.0,0.99077463]
[1749003735296,0.3702735,105710.0,105700.0,0.70201463]
[1749003735536,0.3702735,105710.0,105700.0,0.99073463]
[1749003742975,0.3702735,105710.0,105700.0,0.61357463]
[1749003743233,0.3702735,105710.0,105700.0,0.99073463]
[1749003744155,0.3702735,105710.0,105700.0,0.61357463]
[1749003744394,0.001,105710.0,105700.0,1.02213463]
[1749003744617,0.001,105710.0,105700.0,0.64497463]
[1749003744833,0.001,105710.0,105700.0,1.02213463]
[1749003749974,0.001,105710.0,105700.0,0.62977463]
[1749003749975,0.3550735,105710.0,105700.0,0.62977463]
[1749003750405,0.3550735,105710.0,105700.0,1.00693463]
[1749003755093,0.3550735,105710.0,105700.0,1.02253463]
[1749003755324,0.001,105710.0,105700.0,1.02253463]
[1749003757541,0.42303929,105730.0,105710.0,0.0318]
[1749003757755,0.76303931,105730.0,105720.0,0.4729743]
[1749003757977,0.7630393,105730.0,105720.0,0.4729743]
[1749003758205,0.4072393,105730.0,105720.0,0.4729743]
[1749003758473,0.03544617,105730.0,105720.0,0.4885743]
[1749003758717,0.03544617,105730.0,105720.0,0.5047743]
[1749003759170,0.03544617,105730.0,105720.0,0.4885743]
[1749003759393,0.03744617,105730.0,105720.0,0.4885743]
[1749003761002,0.03744617,105730.0,105720.0,0.5051743]
[1749003761798,0.03944617,105730.0,105720.0,0.5051743]
[1749003762047,0.03744617,105730.0,105720.0,0.51460493]
[1749003762398,0.03544617,105730.0,105720.0,0.51460493]
[1749003765714,0.03544617,105730.0,105720.0,0.5051743]
[1749003765934,0.03544617,105730.0,105720.0,0.4885743]
[1749003766161,0.03544617,105730.0,105720.0,0.4886943]
[1749003767237,0.03544617,105730.0,105720.0,0.5048943]
[1749003781068,0.03544617,105730.0,105720.0,0.2160543]
[1749003781285,0.42251967,105730.0,105720.0,0.1842543]
[1749003781513,0.42251967,105730.0,105720.0,0.4728543]
[1749003782004,0.42251967,105730.0,105720.0,0.4728943]
[1749003782492,0.42251967,105730.0,105720.0,0.0958543]
[1749003782713,0.42251967,105730.0,105720.0,0.4728943]
[1749003782956,0.42251967,105730.0,105720.0,0.0958543]
[1749003783168,0.0165,105710.0,105700.0,0.00048033]
[1749003783400,0.3856735,105710.0,105700.0,0.70185463]
[1749003783620,0.39528936,105710.0,105700.0,0.70185463]
[1749003783844,0.41301178,105710.0,105700.0,0.99069463]
[1749003784079,0.40339592,105710.0,105700.0,0.99069463]
[1749003784308,0.3856735,105710.0,105700.0,0.99069463]
[1749003784752,0.40339592,105710.0,105700.0,0.99069463]
[1749003784984,0.3856735,105710.0,105700.0,0.99069463]
[1749003785201,0.40339557,105710.0,105700.0,0.99069463]
[1749003785467,0.3856735,105710.0,105700.0,0.99081463]
[1749003786132,0.40339548,105710.0,105700.0,0.99081463]
[1749003786346,0.3856735,105710.0,105700.0,0.99081463]
[1749003786559,0.40339548,105710.0,105700.0,0.99081463]
[1749003786776,0.3856735,105710.0,105700.0,0.99081463]
[1749003787024,0.3856735,105710.0,105700.0,0.99077463]
[1749003787252,0.40339549,105710.0,105700.0,0.99077463]
[1749003787432,0.4033955,105710.0,105700.0,0.99077463]
[1749003787921,0.3856735,105710.0,105700.0,0.99077463]
[1749003788841,0.4033957,105710.0,105700.0,0.99077463]
[1749003789060,0.3856735,105710.0,105700.0,0.99077463]
[1749003789307,0.40339567,105710.0,105700.0,0.99077463]
[1749003789525,0.3856735,105710.0,105700.0,0.99077463]
[1749003789935,0.3691735,105710.0,105700.0,0.99077463]
[1749003790626,0.38689538,105710.0,105700.0,0.99077463]
[1749003790851,0.3691735,105710.0,105700.0,0.99077463]
[1749003791295,0.40189537,105710.0,105700.0,0.99077463]
[1749003791518,0.3841735,105710.0,105700.0,0.99077463]
[1749003792191,0.40189537,105710.0,105700.0,0.99077463]
[1749003792416,0.3841735,105710.0,105700.0,0.99077463]
[1749003792637,0.40189537,105710.0,105700.0,0.99077463]
[1749003792858,0.3841735,105710.0,105700.0,0.99077463]
[1749003794033,0.40189537,105710.0,105700.0,0.99077463]
[1749003794283,0.04782187,105710.0,105700.0,0.99077463]
[1749003794512,0.3841735,105710.0,105700.0,0.99077463]
[1749003794780,0.45040667,105730.0,105700.0,0.99828813]
[1749003794998,0.07983317,105730.0,105710.0,0.1108543]
[1749003795223,0.05144617,105730.0,105720.0,0.37744]
[1749003795444,0.06916502,105730.0,105720.0,0.4732943]
[1749003796122,0.05144617,105730.0,105720.0,0.4732943]
[1749003796792,0.05344617,105730.0,105720.0,0.4732943]
[1749003797017,0.40751967,105730.0,105720.0,0.4732943]
[1749003797242,0.40951967,105730.0,105720.0,0.4732943]
[1749003797690,0.05544617,105730.0,105720.0,0.4732943]
[1749003798600,0.05544617,105730.0,105720.0,0.0958543]
[1749003798601,0.40951967,105730.0,105720.0,0.0958543]
[1749003798821,0.40951967,105730.0,105720.0,0.4734143]
[1749003798822,0.42581967,105730.0,105720.0,0.4734143]
[1749003802703,0.42581967,105730.0,105720.0,0.7183743]
[1749003804579,1.11989317,105730.0,105720.0,0.62252]
[1749003804828,1.11989317,105730.0,105720.0,0.24496]
[1749003804829,1.13443402,105730.0,105720.0,0.24496]
[1749003805063,1.13443402,105730.0,105720.0,0.33356]
[1749003805064,1.30857732,105730.0,105720.0,0.33356]
[1749003805306,1.30857732,105730.0,105700.0,0.00048033]
[1749003805307,0.0322,105710.0,105700.0,0.00048033]
[1749003805540,0.7262735,105710.0,105700.0,0.60624033]
[1749003805762,0.7262735,105710.0,105700.0,0.89528033]
[1749003805994,0.74399752,105710.0,105700.0,0.89528033]
[1749003806253,0.7262735,105710.0,105700.0,0.89528033]
[1749003806956,0.74399752,105710.0,105700.0,0.89528033]
[1749003807207,0.7262735,105710.0,105700.0,0.89528033]
[1749003807897,0.74399752,105710.0,105700.0,0.89528033]
[1749003808119,0.7262735,105710.0,105700.0,0.89528033]
[1749003808400,0.74399751,105710.0,105700.0,0.89528033]
[1749003808624,0.74399752,105710.0,105700.0,0.89528033]
[1749003808868,0.7262735,105710.0,105700.0,0.89528033]
[1749003809573,0.7262735,105710.0,105700.0,0.60624033]
[1749003809811,0.7262735,105710.0,105700.0,0.89508033]
[1749003810051,0.74399766,105710.0,105700.0,0.89508033]
[1749003810294,0.7262735,105710.0,105700.0,0.89508033]
[1749003811456,0.7101735,105710.0,105700.0,0.89508033]
[1749003812137,0.72789667,105710.0,105700.0,0.89508033]
[1749003812354,0.7101735,105710.0,105700.0,0.89508033]
[1749003812818,0.3701735,105710.0,105700.0,0.89508033]
[1749003813286,0.3540735,105710.0,105700.0,0.99093463]
[1749003814902,0.3698735,105710.0,105700.0,0.99093463]
[1749003816503,0.7253735,105710.0,105700.0,0.60628033]
[1749003816731,0.7253735,105710.0,105700.0,0.89532033]
[1749003818068,0.7253735,105710.0,105700.0,0.51764033]
[1749003818330,0.74309746,105710.0,105700.0,0.89524033]
[1749003818563,0.7253735,105710.0,105700.0,0.89524033]
[1749003819432,0.7253735,105710.0,105700.0,0.89520033]
[1749003819941,0.7253735,105710.0,105700.0,0.60628033]
[1749003820153,0.7253735,105710.0,105700.0,0.89516033]
[1749003820577,0.74309841,105710.0,105700.0,0.89516033]
[1749003820831,0.7253735,105710.0,105700.0,0.89516033]
[1749003821054,0.74309827,105710.0,105700.0,0.89516033]
[1749003821526,0.7253735,105710.0,105700.0,0.89516033]
[1749003821994,0.74309827,105710.0,105700.0,0.89516033]
[1749003822208,0.74309826,105710.0,105700.0,0.89516033]
[1749003822447,0.7253735,105710.0,105700.0,0.89516033]
[1749003822680,0.7253735,105710.0,105700.0,0.51764033]
[1749003822908,0.73991435,105710.0,105700.0,0.51764033]
[1749003823142,0.73991435,105710.0,105700.0,0.89516033]
[1749003823370,1.16171302,105710.0,105700.0,0.60628033]
[1749003823596,1.14398785,105710.0,105700.0,0.89524033]
[1749003823841,1.16171552,105710.0,105700.0,0.89524033]
[1749003824085,1.29706292,105710.0,105700.0,0.60628033]
[1749003824315,0.016,105680.0,105660.0,0.07594096]
[1749003824593,0.016,105680.0,105670.0,0.0958543]
[1749003824865,0.0319,105680.0,105670.0,0.1844943]
[1749003825305,0.04962856,105680.0,105670.0,0.7018143]
[1749003825528,0.0319,105680.0,105670.0,0.9908143]
[1749003825985,0.4037019,105680.0,105670.0,0.9908143]
[1749003826247,0.75824275,105680.0,105670.0,0.60896]
[1749003826466,0.74051435,105680.0,105670.0,0.60896]
[1749003826690,0.74051435,105680.0,105670.0,0.898]
[1749003826911,0.75014545,105680.0,105670.0,0.898]
[1749003827136,0.76787518,105680.0,105670.0,0.898]
[1749003827357,0.7505193,105680.0,105670.0,0.898]
[1749003827802,0.7505193,105680.0,105670.0,0.897]
[1749003828031,0.7505193,105680.0,105670.0,0.899]
[1749003828216,0.76824902,105680.0,105670.0,0.899]
[1749003828461,0.7505193,105680.0,105670.0,0.899]
[1749003828872,0.7505193,105680.0,105670.0,0.60996]
[1749003829121,0.7505193,105680.0,105670.0,0.89892]
[1749003829344,0.76824906,105680.0,105670.0,0.89892]
[1749003829562,0.7505193,105680.0,105670.0,0.89892]
[1749003830276,0.73597845,105680.0,105670.0,0.90187496]
[1749003830504,0.73597845,105680.0,105670.0,0.89892]
[1749003830726,0.73597845,105680.0,105670.0,0.9947743]
[1749003830727,0.34,105680.0,105670.0,0.9947743]
[1749003830954,0.39904335,105700.0,105670.0,1.0108743]
[1749003830955,0.38284335,105700.0,105670.0,1.0108743]
[1749003831182,0.34,105690.0,105680.0,0.0958543]
[1749003831407,0.38584735,105700.0,105680.0,0.2004743]